fUSD/lending_fUSD_20241010
["ID","MTS","AMOUNT","RATE_DAILY","PERIOD"]
[340097548,1728518744742,185.07,8.41e-05,2]
[340097549,1728518767431,8086.17102829,0.00010134,2]
[340097550,1728518802981,496.230637,0.00010182,2]
[340097567,1728519032173,-781.65,0.00010234,2]
[340097568,1728519032185,-76.51390953,0.00010252,2]
[340097569,1728519032223,-726.0937848,0.00010252,2]
[340097570,1728519032236,-168.23876388,0.00010252,2]
[340097571,1728519032247,-285.27123612,0.00010285,2]
[340097572,1728519032260,-685.57522208,0.00010285,2]
[340097573,1728519032271,-1209.29209355,0.00010302,2]
[340097574,1728519032328,-355.41834579,0.00010302,2]
[340097575,1728519032339,-1738.13713802,0.00010302,2]
[340097576,1728519032382,-3989.45713517,0.00010302,2]
[340097577,1728519032393,-3903.54103755,0.00010302,2]
[340097578,1728519032404,-250.0,0.00010303,2]
[340097579,1728519032414,-203.58,0.00010303,2]
[340097580,1728519032424,-250.0,0.00010321,2]
[340097581,1728519032433,-172.57,0.00010352,2]
[340097582,1728519032443,-413.94,0.00010352,2]
[340097583,1728519032452,-319.8,0.00010385,2]
[340097584,1728519032462,-300.0,0.00010454,2]
[340097585,1728519032471,-7681.62788573,0.00010455,2]
[340097591,1728519038201,-546.52826524,0.00010455,2]
[340097592,1728519038214,-425.4,0.00010455,2]
[340097593,1728519038225,-600.66257117,0.00010455,2]
[340097594,1728519038254,-10868.10608919,0.00010455,2]
[340097595,1728519038362,-3777.67518867,0.00010455,2]
[340097596,1728519038372,-597.96,0.00010497,2]
[340097597,1728519038381,-185.07,0.00010674,2]
[340097598,1728519038390,-263.288,0.0001078,2]
[340097599,1728519038400,-150.0,0.00010799,2]
[340097600,1728519038409,-182.07788389,0.000108,2]
[340097601,1728519038421,-668.23311611,0.000108,2]
[340097602,1728519038431,-2740.40203729,0.000108,2]
[340097603,1728519038443,-724.97184001,0.000108,2]
[340097604,1728519038454,-3408.4925227,0.000108,2]
[340097605,1728519038463,-1000.0,0.000108,2]
[340097606,1728519038473,-160.35324985,0.000109,2]
[340097607,1728519038482,-6105.16211511,0.000109,2]
[340097608,1728519038493,-5224.96062634,0.000109,2]
[340097609,1728519038504,-277.86925802,0.000109,2]
[340097610,1728519038520,-3484.66285541,0.000109,2]
[340097611,1728519038531,-871.78844512,0.000109,2]
[340097612,1728519038540,-838.795,0.000109,2]
[340097613,1728519038549,-9019.34775488,0.000109,2]
[340097614,1728519038561,-1503.10643675,0.000109,2]
[340097615,1728519038572,-6082.3,0.000109,2]
[340097644,1728519040207,-412.39,0.000109,2]
[340097650,1728519040308,-337.34558809,0.000109,2]
[340097651,1728519040319,-2386.74184802,0.000109,2]
[340097652,1728519040329,-179.27909921,0.000109,2]
[340097653,1728519040339,-162.26520813,0.000109,2]
[340097654,1728519040349,-2047.84630896,0.000109,2]
[340097655,1728519040359,-171.57892847,0.000109,2]
[340097656,1728519040368,-151.95,0.00010959,2]
[340097657,1728519040377,-250.0,0.00010959,2]
[340097658,1728519040387,-423.88,0.00010959,2]
[340097659,1728519040396,-161.79,0.00010959,2]
[340097660,1728519040405,-163.62,0.00010959,2]
[340097661,1728519040415,-166.80648002,0.00010997,2]
[340097662,1728519040424,-715.34212537,0.00010999,2]
[340097663,1728519040436,-284.65787463,0.00010999,2]
[340097664,1728519040446,-300.02,0.00010999,2]
[340097665,1728519040455,-163.60863471,0.00010999,2]
[340097666,1728519040464,-704.0,0.00011,2]
[340097667,1728519040474,-1845.53235085,0.00011,2]
[340097668,1728519040493,-449.03088406,0.00011,2]
[340097669,1728519040504,-685.08301683,0.00011,2]
[340097670,1728519040515,-418.43404489,0.00011,2]
[340097671,1728519040527,-21033.57546785,0.00011,2]
[340097672,1728519040547,-94441.16357893,0.00011,2]
[340097673,1728519040558,-18041.17918805,0.00011,2]
[340097674,1728519040569,-4302.89567398,0.00011,2]
[340097675,1728519040584,-8865.05047589,0.00011,2]
[340097677,1728519040666,-1072.66280005,0.00011,2]
[340097678,1728519040678,-1516.992447,0.00011,2]
[340097810,1728519043167,-630.99339394,0.00011,2]
[340097811,1728519043244,-360.21794986,0.00011,2]
[340097812,1728519043255,-262.41410984,0.00011,2]
[340097813,1728519043266,-136038.7219578,0.00011,2]
[340097814,1728519043284,-6180.65784,0.00011,2]
[340097815,1728519043295,-12006.09200007,0.00011,2]
[340097816,1728519043306,-549.12224999,0.00011,2]
[340097817,1728519043320,-86784.58725042,0.00011,2]
[340097818,1728519043423,-1316.26943275,0.00011,2]
[340097824,1728519046099,-674.5000605,0.00011,2]
[340097825,1728519046111,-28240.33403923,0.00011,2]
[340097826,1728519046366,-119816.11250021,0.00011,2]
[340097827,1728519278037,218.87,9.527e-05,2]
[340097828,1728519775557,250.0,9.899e-05,2]
[340097829,1728519792504,233.69,8.871e-05,2]
[340097830,1728519930280,10491.75879727,0.000101,2]
[340097831,1728519955269,3545.96321756,6.94e-05,2]
[340097834,1728519967703,531.2348071,0.0001,2]
[340097835,1728520048348,36335.82488,0.0001,2]
[340097836,1728520077888,15790.22197004,0.0001,2]
[340097842,1728520202987,150.0,0.0001,2]
[340097843,1728520203432,150.0,0.0001,2]
[340097846,1728520203646,150.0,0.0001,2]
[340097847,1728520203878,150.0,0.0001,2]
[340097848,1728520204084,150.0,0.0001,2]
[340097849,1728520204292,225.81542262,0.0001,2]
[340097860,1728520232286,-6485.76551206,0.00010392,2]
[340097861,1728520232342,-3168.51029453,0.00010392,2]
[340097862,1728520232397,-1466.14126311,0.00010392,2]
[340097863,1728520232455,-329.14260328,0.00010392,2]
[340097864,1728520232467,-300.0,0.00010392,2]
[340097865,1728520232480,-682.19,0.00010392,2]
[340097942,1728520238382,-11468.25032702,0.00010392,2]
[340097943,1728520238391,-776.73,0.00010451,2]
[340097944,1728520238400,-155.4,0.00010453,2]
[340097945,1728520238409,-1000.0,0.00010478,2]
[340097946,1728520238420,-304.79,0.0001051,2]
[340097947,1728520238429,-664.92,0.00010569,2]
[340097948,1728520238438,-8192.48,0.00010631,2]
[340097949,1728520238447,-250.0,0.00010633,2]
[340097950,1728520238458,-154.0,0.00010691,2]
[340097951,1728520238469,-150.68,0.00010712,2]
[340097952,1728520238479,-396.65,0.00010781,2]
[340097953,1728520238488,-1216.99,0.00010789,2]
[340097954,1728520238499,-150.0,0.00010898,2]
[340097955,1728520238508,-282.21244354,0.00010899,2]
[340097956,1728520238518,-282.21244347,0.00010899,2]
[340097957,1728520238528,-282.21244347,0.00010899,2]
[340097958,1728520238538,-282.21244347,0.00010899,2]
[340097959,1728520238550,-282.21244347,0.00010899,2]
[340097960,1728520238560,-282.21244347,0.00010899,2]
[340097961,1728520238570,-282.21244347,0.00010899,2]
[340097962,1728520238580,-282.21244347,0.00010899,2]
[340097963,1728520238590,-282.21244347,0.00010899,2]
[340097964,1728520238600,-500.0,0.000109,2]
[340097965,1728520238610,-1204.4553,0.000109,2]
[340097966,1728520238621,-3994.38582638,0.000109,2]
[340097967,1728520238637,-2926.27464045,0.000109,2]
[340097968,1728520238648,-565.54412118,0.000109,2]
[340097969,1728520238664,-23039.79552983,0.000109,2]
[340097970,1728520238683,-20368.28711624,0.000109,2]
[340097971,1728520238694,-61360.00636592,0.000109,2]
[340097972,1728520238706,-30706.6963,0.000109,2]
[340097973,1728520238718,-2623.86427077,0.000109,2]
[340098026,1728520240314,-1367.76559331,0.000109,2]
[340098027,1728520240325,-1504.8021717,0.000109,2]
[340098088,1728520241439,-50641.37306422,0.000109,2]
[340098089,1728520241449,-211.80730258,0.000109,2]
[340098090,1728520241458,-824.0153,0.000109,2]
[340098091,1728520241467,-160.16570417,0.000109,2]
[340098092,1728520241476,-282.21244347,0.000109,2]
[340098093,1728520241486,-1255.93508669,0.000109,2]
[340098094,1728520241495,-4318.92407435,0.000109,2]
[340098095,1728520241504,-170.76,0.00010954,2]
[340098096,1728520241513,-499.99,0.00010954,2]
[340098097,1728520241522,-160.42,0.00010959,2]
[340098098,1728520241532,-152.42,0.00010959,2]
[340098099,1728520241542,-250.0,0.00010959,2]
[340098100,1728520241552,-686.52,0.00010959,2]
[340098101,1728520241562,-151.66,0.00010959,2]
[340098102,1728520241571,-201.18626889,0.00010973,2]
[340098103,1728520241580,-500.0,0.00010973,2]
[340098104,1728520241590,-150.01,0.00010999,2]
[340098105,1728520241599,-888.0,0.00011,2]
[340098106,1728520241608,-110426.20120949,0.00011,2]
[340098107,1728520241755,-3504.1443,0.00011,2]
[340098108,1728520241766,-3868.2,0.00011,2]
[340098109,1728520241777,-883.29999,0.00011,2]
[340098110,1728520241791,-5456.23636126,0.00011,2]
[340098111,1728520241802,-1296.85460244,0.00011,2]
[340098112,1728520241814,-1008.91552831,0.00011,2]
[340098113,1728520241834,-648.55626572,0.00011,2]
[340098114,1728520241846,-322.56152394,0.00011,2]
[340098115,1728520241857,-3705.05,0.00011,2]
[340098116,1728520241868,-4271.39746124,0.00011,2]
[340098117,1728520241880,-1512.497522,0.00011,2]
[340098125,1728520243456,-303626.46305116,0.00011,2]
[340098126,1728520243467,-1079.31918,0.00011,2]
[340098127,1728520243479,-1272.72145,0.00011,2]
[340098128,1728520243490,-2180.37715403,0.00011,2]
[340098129,1728520243501,-188722.64664643,0.00011,2]
[340098130,1728520243513,-377.11693109,0.00011,2]
[340098131,1728520243566,-679.03266755,0.00011,2]
[340098132,1728520243578,-265.6000002,0.00011,2]
[340098133,1728520243624,-653.31270692,0.00011,2]
[340098139,1728520246334,-3700.0,0.00011,2]
[340098140,1728520246346,-65649.64170122,0.00011,2]
[340098141,1728520246358,-1511.4,0.00011,2]
[340098142,1728520246370,-416.0689448,0.00011,2]
[340098143,1728520246396,-522.01898272,0.00011,2]
[340098144,1728520246408,-668.30843146,0.00011,2]
[340098145,1728520246454,-973.24910627,0.00011,2]
[340098146,1728520246466,-343.53915486,0.00011,2]
[340098147,1728520246478,-47387.96708831,0.00011,2]
[340098148,1728520246567,-850.0,0.00011,2]
[340098149,1728520246576,-390.04908422,0.00011,2]
[340098150,1728520370324,247.76,9.393e-05,2]
[340098151,1728520484965,250.0,9.899e-05,2]
[340098152,1728520749199,23900.0,9.899e-05,2]
[340098153,1728520986563,406.38,9.983e-05,2]
[340098154,1728520997007,250.0,9.949e-05,2]
[340098155,1728521033322,235.37,8.219e-05,2]
[340098156,1728521058414,440.34,9.932e-05,2]
[340098158,1728521168738,800.0,9.847e-05,2]
[340098160,1728521171450,500.0,9.832e-05,2]
[340098161,1728521218614,155.28,9.873e-05,2]
[340098162,1728521245830,164.22,9.832e-05,2]
[340098163,1728521255849,23900.0,9.832e-05,2]
[340098164,1728521283494,959.26,9.947e-05,2]
[340098165,1728521422007,250.0,9.889e-05,2]
[340098168,1728521431440,-160.2362786,0.00010409,2]
[340098169,1728521431449,-159.62410339,0.00010475,2]
[340098170,1728521431496,-75.74589661,0.00010475,2]
[340098171,1728521431506,-154.4,0.00010509,2]
[340098172,1728521431517,-154.4,0.00010515,2]
[340098173,1728521431526,-154.4,0.00010521,2]
[340098174,1728521431534,-154.4,0.00010527,2]
[340098175,1728521431544,-154.4,0.00010533,2]
[340098176,1728521431555,-154.4,0.00010538,2]
[340098177,1728521431566,-154.4,0.00010544,2]
[340098178,1728521431578,-422.01167154,0.00010544,2]
[340098179,1728521431593,-77.97832846,0.00010544,2]
[340098180,1728521431603,-154.4,0.0001055,2]
[340098181,1728521431616,-26.39018763,0.00010556,2]
[340098182,1728521431629,-128.00981237,0.00010556,2]
[340098183,1728521431639,-154.4,0.00010562,2]
[340098184,1728521431649,-200.0,0.00010648,2]
[340098185,1728521431659,-802.28,0.00010686,2]
[340098186,1728521431668,-160.2362786,0.00010711,2]
[340098187,1728521431679,-150.0,0.00010799,2]
[340098188,1728521431689,-209.837,0.000108,2]
[340098189,1728521431700,-2901.4902,0.000108,2]
[340098190,1728521431710,-1737.65608214,0.000108,2]
[340098191,1728521431723,-822.5,0.000108,2]
[340098192,1728521431735,-1817.0535657,0.000108,2]
[340098193,1728521431759,-397.08384421,0.000108,2]
[340098206,1728521437579,-2513.85068456,0.00010521,2]
[340098207,1728521437590,-1216.02192436,0.00010521,2]
[340098208,1728521437698,-849.39240122,0.00010521,2]
[340098209,1728521437748,-8723.58588995,0.00010521,2]
[340098210,1728521437757,-34677.94543008,0.000108,2]
[340098211,1728521437768,-896.54677076,0.000108,2]
[340098212,1728521439456,-753.83647302,0.000108,2]
[340098213,1728521439513,-447.4060023,0.000108,2]
[340098214,1728521439525,-1647.3375973,0.000108,2]
[340098215,1728521439536,-832.0761888,0.000108,2]
[340098216,1728521439547,-415.24889735,0.000108,2]
[340098217,1728521439572,-9060.58434834,0.000108,2]
[340098218,1728521439581,-509.5205,0.000108,2]
[340098219,1728521439590,-200.0,0.00010811,2]
[340098220,1728521439599,-956.5,0.00010823,2]
[340098221,1728521439608,-172.12,0.00010852,2]
[340098222,1728521439620,-342.04861734,0.00010899,2]
[340098223,1728521439629,-342.04861731,0.00010899,2]
[340098224,1728521439638,-342.04861731,0.00010899,2]
[340098225,1728521439647,-342.04861731,0.00010899,2]
[340098226,1728521439656,-342.04861731,0.00010899,2]
[340098227,1728521439665,-342.04861731,0.00010899,2]
[340098228,1728521439675,-342.04861731,0.00010899,2]
[340098229,1728521439684,-342.04861731,0.00010899,2]
[340098230,1728521439694,-342.04861731,0.00010899,2]
[340098231,1728521439704,-58052.61818192,0.000109,2]
[340098232,1728521439715,-306.09729367,0.000109,2]
[340098233,1728521439726,-304.5,0.000109,2]
[340098234,1728521439736,-3835.80015978,0.000109,2]
[340098235,1728521439751,-3249.95340702,0.000109,2]
[340098236,1728521439762,-526.41,0.000109,2]
[340098240,1728521442547,-7336.78515761,0.000109,2]
[340098241,1728521442556,-156.28090448,0.000109,2]
[340098242,1728521442566,-342.04861731,0.000109,2]
[340098243,1728521442575,-151.95,0.00010959,2]
[340098244,1728521442584,-200.0,0.00011,2]
[340098245,1728521442592,-767.0,0.00011,2]
[340098246,1728521442601,-58563.78491622,0.00011,2]
[340098247,1728521442616,-338.94299958,0.00011,2]
[340098248,1728521442627,-364114.03974789,0.00011,2]
[340098249,1728521442657,-70612.99297596,0.00011,2]
[340098250,1728521442765,-291.59768324,0.00011,2]
[340098251,1728521442776,-313.75221724,0.00011,2]
[340098254,1728521445544,-1229.5729,0.000109,2]
[340098255,1728521445554,-19656.81377323,0.00011,2]
[340098256,1728521445653,-4855.4545189,0.00011,2]
[340098257,1728521445664,-16173.01660065,0.00011,2]
[340098259,1728521453546,5320.0,0.000102,5]
[340098260,1728521573870,267.98,8.991e-05,2]
[340098261,1728522041787,150.0,0.000125,3]
[340098262,1728522080550,282.27,8.41e-05,2]
[340098263,1728522148498,457.382313,0.00010219,2]
[340098264,1728522158611,263.93662768,0.00010171,2]
[340098265,1728522291330,189.06,0.00010175,2]
[340098266,1728522312909,151.75,8.259e-05,2]
[340098269,1728522553215,250.0,0.00010117,2]
[340098270,1728522577593,297.24,8.339e-05,2]
[340098287,1728522631616,-500.0,0.00010235,2]
[340098288,1728522631626,-330.81,0.00010267,2]
[340098289,1728522631636,-1078.61,0.00010267,2]
[340098290,1728522631646,-200.01741355,0.0001027,2]
[340098291,1728522631657,-99.98258645,0.0001027,2]
[340098292,1728522631667,-200.0,0.00010271,2]
[340098293,1728522631677,-8389.39579108,0.00010271,2]
[340098294,1728522631689,-15510.60420892,0.00010271,2]
[340098295,1728522631698,-250.0,0.00010271,2]
[340098296,1728522631707,-37.45121416,0.00010297,2]
[340098297,1728522631719,-113.96878584,0.00010297,2]
[340098298,1728522631728,-150.0,0.00010317,2]
[340098299,1728522631740,-446.59091946,0.00010377,2]
[340098300,1728522631752,-193.40908054,0.00010377,2]
[340098301,1728522631762,-155.15,0.0001039,2]
[340098302,1728522631771,-172.12,0.00010448,2]
[340098303,1728522631781,-49.41091946,0.00010603,2]
[340098304,1728522631792,-247.82908054,0.00010603,2]
[340098305,1728522631802,-228.23,0.000107,2]
[340098306,1728522631812,-360.0,0.00010772,2]
[340098307,1728522631822,-261.6193,0.000108,2]
[340098308,1728522631831,-342.357,0.0001089,2]
[340098309,1728522631840,-1887.92588485,0.0001089,2]
[340098318,1728522632012,-926.07411515,0.0001089,2]
[340098319,1728522632022,-150.0,0.00010899,2]
[340098320,1728522632031,-476.34948085,0.000109,2]
[340098321,1728522632043,-638.53496438,0.000109,2]
[340098322,1728522632054,-141.36555477,0.000109,2]
[340098323,1728522632063,-185.16008047,0.000109,2]
[340098324,1728522632072,-80.25288491,0.000109,2]
[340098325,1728522632084,-548.16321584,0.000109,2]
[340098326,1728522632098,-658.25,0.000109,2]
[340098327,1728522632113,-502.63712399,0.000109,2]
[340098328,1728522632124,-5104.91473355,0.000109,2]
[340098329,1728522632136,-600.81924,0.000109,2]
[340098330,1728522632159,-301.2900896,0.000109,2]
[340098331,1728522637733,-10620.99461283,0.000109,2]
[340098332,1728522637745,-14469.96847138,0.000109,2]
[340098333,1728522637909,-7984.48827585,0.000109,2]
[340098334,1728522637920,-10135.65999346,0.000109,2]
[340098335,1728522637935,-4592.21765859,0.000109,2]
[340098336,1728522637944,-7196.3347,0.000109,2]
[340098337,1728522637954,-177.38,0.00010959,2]
[340098338,1728522637964,-160.06,0.00010959,2]
[340098339,1728522637975,-250.0,0.00010959,2]
[340098340,1728522637985,-150.0,0.00010959,2]
[340098341,1728522637994,-506.7,0.00010959,2]
[340098342,1728522638003,-422.25,0.00010959,2]
[340098343,1728522638013,-351.87,0.00010959,2]
[340098344,1728522638022,-293.23,0.00010959,2]
[340098345,1728522638033,-244.35,0.00010959,2]
[340098346,1728522638043,-152.42,0.00010959,2]
[340098347,1728522638053,-203.63,0.00010959,2]
[340098348,1728522638064,-169.69,0.00010959,2]
[340098349,1728522638075,-848.48,0.00010959,2]
[340098350,1728522638086,-500.0,0.00010973,2]
[340098351,1728522638098,-162.86853353,0.00010973,2]
[340098353,1728522638110,-273.2828905,0.00010973,2]
[340098356,1728522638122,-63.84857597,0.00010973,2]
[340098358,1728522638131,-500.0,0.00010973,2]
[340098359,1728522638141,-30.65142403,0.00010997,2]
[340098362,1728522638152,-1851.34130064,0.00010997,2]
[340098364,1728522638164,-729.82228752,0.00010997,2]
[340098366,1728522638177,-289.4002629,0.00010997,2]
[340098368,1728522638188,-2183.16426548,0.00010997,2]
[340098370,1728522638199,-281.55,0.00010997,2]
[340098373,1728522638222,-1177.0,0.00010997,2]
[340098375,1728522638233,-464.49215407,0.00010997,2]
[340098377,1728522638245,-402.25337383,0.00010997,2]
[340098379,1728522638254,-500.0,0.00010999,2]
[340098381,1728522638263,-500.0,0.00010999,2]
[340098382,1728522638271,-500.0,0.00010999,2]
[340098384,1728522638281,-500.0,0.00010999,2]
[340098386,1728522638290,-439.55981592,0.00010999,2]
[340098388,1728522638299,-795.0,0.00011,2]
[340098390,1728522638308,-2991.49120968,0.00011,2]
[340098392,1728522638319,-592.08569065,0.00011,2]
[340098394,1728522638330,-450.87290596,0.00011,2]
[340098402,1728522639711,-590.3446827,0.00011,2]
[340098403,1728522639723,-343.13376577,0.00011,2]
[340098404,1728522639771,-1075.87369966,0.00011,2]
[340098405,1728522639784,-113662.45817085,0.00011,2]
[340098406,1728522639887,-2697.52484952,0.00011,2]
[340098407,1728522639899,-6190.41967663,0.00011,2]
[340098408,1728522639911,-347.28999987,0.00011,2]
[340098409,1728522639925,-605.73,0.00011,2]
[340098410,1728522642700,-435.216782,0.00011,2]
[340098411,1728522642713,-2736.29639924,0.00011,2]
[340098412,1728522642724,-511.74477419,0.00011,2]
[340098413,1728522642735,-9245.25,0.00011,2]
[340098414,1728522642751,-6020.00259753,0.00011,2]
[340098415,1728522642762,-3664.28065587,0.00011,2]
[340098416,1728522642773,-3397.76989014,0.00011,2]
[340098417,1728522642788,-1269.05719409,0.00011,2]
[340098418,1728522642799,-3011.29539032,0.00011,2]
[340098419,1728522642811,-500.0,0.00011,2]
[340098420,1728522642829,-1838.83819234,0.00011,2]
[340098421,1728522642882,-2829.58704795,0.00011,2]
[340098422,1728522642897,-769.133491,0.00011,2]
[340098423,1728522642909,-1210.0,0.00011,2]
[340098424,1728522642920,-4783.16,0.00011,2]
[340098425,1728522642967,-167975.93750219,0.00011,2]
[340098426,1728522642986,-411.21193727,0.00011,2]
[340098427,1728522642997,-18847.96200157,0.00011,2]
[340098428,1728522643009,-36813.03163764,0.00011,2]
[340098430,1728522645722,-722.0,0.00011,2]
[340098431,1728522645733,-579.37556257,0.00011,2]
[340098432,1728522645744,-10019.09632223,0.00011,2]
[340098433,1728522669052,606.0427,0.00010171,2]
[340098434,1728522717165,623.0,0.000102,5]
[340098435,1728522850021,151.75,8.495e-05,2]
[340098436,1728523125887,325.45,8.323e-05,2]
[340098437,1728523133538,151.38,0.00010164,2]
[340098438,1728523133757,151.38,0.00010189,2]
[340098439,1728523133980,151.38,0.00010215,2]
[340098440,1728523199691,150.0,0.00010155,2]
[340098441,1728523199714,50.0,0.00010155,2]
[340098442,1728523235654,100.0,0.00010182,2]
[340098443,1728523235676,55.15,0.00010182,2]
[340098444,1728523281789,225.1160951,0.00010135,2]
[340098445,1728523281811,23674.8839049,0.00010135,2]
[340098446,1728523428707,2031.0,0.0001023,2]
[340098447,1728523617603,255.0,0.000215,90]
[340098448,1728523654138,-250.0,0.00010275,2]
[340098449,1728523654165,-258.56,0.00010279,2]
[340098450,1728523654192,-906.62,0.00010281,2]
[340098451,1728523654217,-1519.4,0.00010286,2]
[340098452,1728523654243,-300.0,0.00010309,2]
[340098453,1728523654270,-8752.94640023,0.0001031,2]
[340098454,1728523654298,-1749.19,0.0001031,2]
[340098455,1728523654323,-250.0,0.0001032,2]
[340098456,1728523654348,-1000.0,0.0001032,2]
[340098457,1728523654371,-1428.7982,0.00010376,2]
[340098458,1728523654395,-175.75,0.00010476,2]
[340098459,1728523654420,-499.99,0.00010476,2]
[340098460,1728523654446,-222.0,0.00010586,2]
[340098461,1728523654472,-325.45,0.00010587,2]
[340098462,1728523654501,-150.0,0.00010799,2]
[340098463,1728523654530,-900.0,0.000108,2]
[340098464,1728523654569,-262.1817,0.000108,2]
[340098465,1728523654597,-825.9243,0.000108,2]
[340098466,1728523654622,-747.4548,0.000108,2]
[340098467,1728523654649,-1958.1933,0.000108,2]
[340098468,1728523654676,-1000.0,0.000108,2]
[340098469,1728523654701,-2004.617,0.000108,2]
[340098470,1728523654726,-214.7207,0.000108,2]
[340098471,1728523654750,-1438.5871,0.000108,2]
[340098472,1728523654777,-1226.69,0.00010873,2]
[340098473,1728523654801,-473.44858279,0.00010873,2]
[340098474,1728523654824,-479.07450567,0.00010899,2]
[340098475,1728523654850,-479.07450567,0.00010899,2]
[340098476,1728523654878,-479.07450567,0.00010899,2]
[340098477,1728523654902,-479.07450567,0.00010899,2]
[340098478,1728523654925,-479.07450567,0.00010899,2]
[340098479,1728523654948,-479.07450567,0.00010899,2]
[340098480,1728523654970,-479.07450567,0.00010899,2]
[340098481,1728523654992,-479.07450567,0.00010899,2]
[340098482,1728523655018,-9154.644866,0.000109,2]
[340098483,1728523655041,-39904.53282593,0.000109,2]
[340098484,1728523674142,321.89,8.881e-05,2]
[340098485,1728523676214,6015.9131046,0.00013,15]
[340098498,1728523815926,172.86,9.826e-05,2]
[340098499,1728523820787,1550.95,9.825e-05,2]
[340098503,1728523832128,-360.12,0.00010653,2]
[340098504,1728523832137,-360.12,0.00010655,2]
[340098505,1728523832146,-360.12,0.00010658,2]
[340098506,1728523832155,-360.12,0.00010661,2]
[340098507,1728523832164,-360.12,0.00010664,2]
[340098508,1728523832173,-360.12,0.00010667,2]
[340098509,1728523832182,-220.76970547,0.00010669,2]
[340098510,1728523832193,-139.35029453,0.00010669,2]
[340098511,1728523832202,-360.12,0.00010672,2]
[340098512,1728523832211,-360.12,0.00010675,2]
[340098513,1728523832220,-360.12,0.00010678,2]
[340098514,1728523832230,-360.12,0.00010681,2]
[340098515,1728523832239,-360.12,0.00010683,2]
[340098516,1728523832249,-360.12,0.00010686,2]
[340098517,1728523832259,-360.12,0.00010689,2]
[340098518,1728523832268,-249.23106582,0.00010692,2]
[340098519,1728523832291,-110.88893418,0.00010692,2]
[340098520,1728523832300,-360.12,0.00010694,2]
[340098521,1728523832310,-360.12,0.00010697,2]
[340098522,1728523832319,-360.12,0.000107,2]
[340098523,1728523832328,-360.12,0.00010703,2]
[340098524,1728523832337,-2838.39134857,0.00010704,2]
[340098525,1728523832348,-8525.8809527,0.00010704,2]
[340098526,1728523832359,-1240.0,0.00010704,2]
[340098527,1728523832370,-11295.72769873,0.00010704,2]
[340098528,1728523832379,-360.12,0.00010706,2]
[340098529,1728523832389,-370.63,0.00010747,2]
[340098530,1728523832398,-159.69150191,0.00010899,2]
[340098531,1728523832408,-150.0,0.00010899,2]
[340098532,1728523832417,-159.6915019,0.00010899,2]
[340098533,1728523832427,-159.6915019,0.00010899,2]
[340098534,1728523832436,-159.6915019,0.00010899,2]
[340098535,1728523832446,-159.6915019,0.00010899,2]
[340098536,1728523832456,-20762.15882484,0.000109,2]
[340098537,1728523832467,-784.65653678,0.000109,2]
[340098538,1728523832478,-2130.44985288,0.000109,2]
[340098539,1728523832489,-827.13712285,0.000109,2]
[340098540,1728523832502,-482.73538408,0.000109,2]
[340098541,1728523832513,-517.85511205,0.000109,2]
[340098542,1728523832525,-1066.56431726,0.000109,2]
[340098543,1728523832536,-785.42033485,0.000109,2]
[340098544,1728523832547,-2128.43785159,0.000109,2]
[340098547,1728523838161,-9575.76920669,0.000109,2]
[340098548,1728523838173,-25178.41658163,0.000109,2]
[340098549,1728523838474,-447.47605795,0.000109,2]
[340098550,1728523838485,-325.12597568,0.000109,2]
[340098551,1728523838543,-4340.75595051,0.000109,2]
[340098552,1728523838871,-134903.50626443,0.000109,2]